[Event "GCT Superbet Rapid Poland 2025"]
[Site "Warsaw"]
[Date "2025.04.26"]
[Round "1.4"]
[White "Vachier-Lagrave, Maxime"]
[Black "Praggnanandhaa R"]
[Result "0-1"]
[ECO "B30"]
[WhiteElo "2722"]
[BlackElo "2758"]
[Annotator "TA"]
[PlyCount "90"]
[EventDate "2025.??.??"]
[EventType "rapid"]
[TimeControl "1500+10"]

{[%evp 10,90,29,22,33,-4,5,-30,-18,-16,-10,-29,-17,-40,-38,-41,-25,-28,-38,-39,-30,-39,-14,-8,25,20,22,17,10,10,12,0,0,0,29,27,78,69,97,96,94,86,103,99,98,78,129,123,159,54,53,59,60,0,0,0,0,-121,-14,-483,-481,-479,-481,-818,-712,-718,-718,-718,-707,-691,-675,-869,-869,-842,-856,-794,-794,-869,-788,-872,-872,-12831,-6195]} 1. e4 {[%emt 0:00:02]} c5 {[%emt 0:00:02]} 2. Nc3 {[%emt 0:00:02]} Nc6 {[%emt 0:00:09]} 3. Bb5 {[%emt 0:00:02]} Nd4 {[%emt 0:00:15]} 4. Nf3 {[%emt 0:00:02]} e6 {[%emt 0:00:13]} 5. O-O {[%emt 0:00:02]} a6 {[%emt 0:00:05]} 6. Bd3 {[%emt 0:00:02]} Nc6 {[%emt 0:00:02] B30: Sicilian: 2...Nc6 3 Bb5, lines without ...g6.} 7. Nd5 {[%emt 0:00:11][%cal Oa2a3]} g6 {[%emt 0:00:30]} 8. Ne3 {[%emt 0:00:48]} Bg7 {[%emt 0:00:04] Black has an edge.} 9. c3 {[%emt 0:00:01]} Nge7 {[%emt 0:00:22]} 10. Bc2 {[%emt 0:00:29]} d5 {[%emt 0:00:16]} 11. exd5 {[%emt 0:02:11]} exd5 {[%emt 0:00:10]} 12. d4 {[%emt 0:00:01]} cxd4 {[%emt 0:00:03]} 13. cxd4 {[%emt 0:00:02]} O-O {[%emt 0:00:08]} 14. b3 $146 {[%emt 0:00:20]} (14. Bb3 Qd6 15. h3 Bf5 16. Ng4 Be4 17. Nfe5 Nf5 18. f3 Ncxd4 19. fxe4 {½-½ Rapport,R (2776)-Shevchenko,K (2644) Warsaw Superbet Classic Blitz 2022 (7.3)}) ({RR} 14. Bb3 Be6 15. Qd3 Qb6 16. Rd1 Rac8 17. h3 Qb5 18. Qxb5 axb5 19. g4 Na5 20. Ng2 Nc4 21. Nf4 Nc6 22. Bc2 Ra8 23. Kg2 Rfd8 24. Ne2 Nb4 25. Bb1 Nc6 26. Bc2 Nb4 27. Bb1 Na5 28. Bd2 Bf8 {Degraeve,R (2419)-Laurent Paoli,P (2298) Albi 2022 ½-½ (48)}) ({RR} 14. Bb3 Be6 15. Qd3 Qb6 16. Rd1 Rac8 17. h3 Qb5 18. Qxb5 axb5 19. g4 Na5 20. Ng2 Nc4 21. Nf4 Nc6 22. Bc2 Ra8 23. Kg2 Rfd8 24. Ne2 Nb4 25. Bb1 Nc6 26. Bc2 Nb4 27. Bb1 Na5 28. Bd2 Bf8 {Degraeve,R (2419)-Laurent Paoli,P (2298) Albi 2022 ½-½ (48)}) 14... f5 {[%emt 0:02:32]} 15. h3 $1 {[%emt 0:00:48]} f4 {[%emt 0:02:53]} 16. Ng4 {[%emt 0:00:09]} Nf5 {[%emt 0:00:17][%cal Rf5d4]} 17. Bb2 {[%emt 0:03:28]} (17. Bxf4 Nfxd4 18. Nxd4 Rxf4 19. Nxc6 bxc6 $15) 17... Nh4 {[%emt 0:00:15]} 18. Nge5 {[%emt 0:01:25]} Bxe5 {[%emt 0:02:12]} 19. dxe5 {[%emt 0:00:08] And now Nxh4 would win.} (19. Nxe5 $2 Qg5 20. Ng4 h5 $19) 19... Be6 {[%emt 0:00:04]} 20. Rc1 {[%emt 0:00:48][%cal Ob3b4]} Rf7 {[%emt 0:01:21]} 21. Re1 {[%emt 0:00:25]} Qe7 {[%emt 0:02:44]} 22. Bd3 {[%emt 0:00:21]} Rg7 {[%emt 0:02:33]} (22... Nxf3+ $11 23. Qxf3 Kg7) 23. Be2 {[%emt 0:03:12]} Nxf3+ {[%emt 0:03:04]} 24. Bxf3 {[%emt 0:00:42]} Rd8 {[%emt 0:00:10]} 25. Bd4 {[%emt 0:00:37][%cal Bb2d4,Bd4b6,Bb6c5,Bc5d6][%mdl 32]} Qg5 {[%emt 0:00:50][%cal Og7d7]} 26. Bb6 {[%emt 0:02:44]} Rdd7 {[%emt 0:00:39]} 27. Bc5 {[%emt 0:03:03]} d4 {[%emt 0:00:48]} ({Black should try} 27... h5) 28. Bd6 $16 {[%emt 0:01:27] This pair of bishops is nice.} Bxh3 {[%emt 0:01:37]} 29. Rxc6 {[%emt 0:00:58]} (29. Ba3 $1 $16) 29... bxc6 $14 {[%emt 0:00:18]} 30. Bxc6 {[%emt 0:00:01][%csl Od6] Strong Square White (d6)} (30. Qxd4 $2 Bxg2 (30... Be6 31. Bxc6 Rd8 32. b4 $11) 31. Qc4+ (31. Bxg2 $2 f3 $19) 31... Rgf7 32. Bxg2 f3 $19) 30... Rd8 {[%emt 0:02:03]} 31. Qd3 {[%emt 0:00:01]} (31. Qxd4 $2 {too greedy.} Bxg2 (31... Be6 32. Bd5 $16) 32. Bxg2 f3 33. Qc4+ Rf7 $19) (31. Bd5+ $14 Kh8 32. Qd3 (32. Qxd4 $2 Bxg2 33. Rc1 Bxd5+ $19) 32... Rxd6 33. exd6 Qxd5 34. Qxh3 Qxd6 35. Qc8+ Rg8 36. Qb7) 31... Be6 $11 {[%emt 0:00:16]} 32. Qxa6 {[%emt 0:00:14]} h5 {[%emt 0:00:23]} 33. Qd3 {[%emt 0:00:52] [#]} (33. Bf3 $11) 33... Rc8 $40 {[%emt 0:00:07][%mdl 128] Black attacks.} (33... h4 $1 $17 {White must now prevent ...h3.} 34. Qf3 Ra7) 34. Qe4 $2 {[%emt 0:01:25][%mdl 8192] [#] This costs White the game.} (34. Qa6 $11) 34... f3 $1 $19 {[%emt 0:01:06][%mdl 512] Black is clearly winning.} 35. Qxf3 {[%emt 0:00:59]} Rf7 {[%emt 0:00:01]} 36. Bd5 {[%emt 0:00:01]} (36. Qe4 $142 Rf4 37. Bd5 Rxe4 38. Bxe6+ Kg7 39. Rxe4 Rc1+ 40. Kh2) 36... Rxf3 {[%emt 0:01:02]} 37. Bxe6+ {[%emt 0:00:01]} Kh7 {[%emt 0:00:26][%cal Of3f2] (  ...Rxf2!)} 38. Bxc8 {[%emt 0:00:01]} Rc3 {[%emt 0:00:12]} 39. Ba6 {[%emt 0:00:15]} Rc1 {[%emt 0:00:45]} 40. Rf1 {[%emt 0:00:44]} Rxf1+ {[%emt 0:00:22]} 41. Bxf1 {[%emt 0:00:01]} Qc1 {[%emt 0:00:07]} 42. e6 {[%emt 0:00:17] [#]} Kg8 $1 {[%emt 0:00:07]} 43. e7 {[%emt 0:02:02]} Kf7 {[%emt 0:00:03]} 44. g3 {[%emt 0:00:03]} d3 {[%emt 0:00:16]} 45. Kg2 {[%emt 0:00:01]} Qc6+ {[%emt 0:00:02] Weighted Error Value: White=0.71/Black=0.17 (very precise) Loses game: 	White=1 	--- Mistake: 	White=4 	Black=3 Inaccurate: 	White=2 	Black=3 OK: 	White=13 	Black=13 Best: 	White=1 	Black=3 Strong: 	White=1 	---} 0-1

[Event "GCT Superbet Rapid Poland 2025"]
[Site "Warsaw"]
[Date "2025.04.26"]
[Round "1.5"]
[White "Aravindh, Chithambaram VR."]
[Black "Deac, Bogdan-Daniel"]
[Result "1/2-1/2"]
[ECO "C42"]
[WhiteElo "2749"]
[BlackElo "2668"]
[Annotator "TA"]
[PlyCount "151"]
[EventDate "2025.??.??"]
[EventType "rapid"]
[TimeControl "1500+10"]

{[%evp 13,151,9,6,-1,18,17,21,20,29,29,35,8,16,25,30,9,20,8,6,6,1,0,0,6,8,-10,10,8,37,31,31,31,31,14,4,0,11,9,11,0,0,-97,-108,-93,-36,-44,0,0,0,-29,-19,-45,-29,-20,-20,-58,-48,-52,-32,-68,-68,-97,-53,-56,-53,-89,-8,-57,-57,-59,-45,-44,-44,-44,-44,-53,-53,-53,-47,-53,-53,-56,-29,-52,-47,-52,-41,-59,-52,-54,-54,-58,-62,-57,-57,-75,-78,-91,-56,-56,-56,-56,-54,-91,-96,-228,-83,-80,-75,-71,0,-54,-44,-44,-37,-50,0,-46,-33,-62,-8,-8,0,0,0,0,0,0,0,0,0,0,0,0,0,0,0,0,0,0]} 1. e4 {[%emt 0:00:06]} e5 {[%emt 0:00:03]} 2. Nf3 {[%emt 0:00:04]} Nf6 {[%emt 0:00:09]} 3. Nxe5 {[%emt 0:01:02]} d6 {[%emt 0:00:03]} 4. Nf3 {[%emt 0:00:02]} Nxe4 {[%emt 0:00:03]} 5. Bd3 {[%emt 0:01:05]} Nf6 {[%emt 0:01:27]} 6. O-O {[%emt 0:00:06]} Be7 {[%emt 0:00:11]} 7. h3 {[%emt 0:01:20]} O-O {[%emt 0:02:26]} 8. c3 {[%emt 0:00:26] C42: Petroff Defence: 3 Nxe5 and unusual White 3rd moves.} b6 {[%emt 0:03:28]} 9. Bc2 {[%emt 0:00:48]} Bb7 {[%emt 0:00:29]} 10. d4 {[%emt 0:00:08]} Re8 {[%emt 0:01:14]} 11. Bf4 {[%emt 0:04:03]} Nbd7 {[%emt 0:00:57][%cal Bb8d7,Bd7f8,Bf8g6][%mdl 32]} 12. Nbd2 {[%emt 0:00:07]} Nf8 {[%emt 0:00:12]} ({RR} 12... Bf8 13. Re1 Rxe1+ 14. Qxe1 Qe7 15. Qf1 Re8 16. c4 g6 17. d5 Bg7 18. Re1 Qf8 19. Be3 a5 20. Nd4 Ba6 21. Ba4 Re7 22. Bb5 Bxb5 23. Nxb5 Nc5 24. a3 Nfe4 25. b4 Na6 26. Nxe4 Rxe4 27. bxa5 {Pajeken,J (2424)-Krastev,A (2457) Bremen GER 2024 1-0 (71)}) 13. Re1 {[%emt 0:01:37]} Ng6 {[%emt 0:00:26]} 14. Bg5 $146 {[%emt 0:00:52]} (14. Bh2 Qd7 15. a4 a5 16. Bd3 Bf8 17. Qc2 Rxe1+ 18. Rxe1 Re8 19. Rxe8 Qxe8 20. Kf1 {0-1 Alavi,S (2445)-Paravyan,D (2647) Titled Tuesday intern op 01st June blitz 2021 (6)}) ({RR} 14. Bh2 Qd7 15. c4 Bf8 16. Rxe8 Rxe8 17. d5 a6 18. Nd4 b5 19. Rc1 Rb8 20. b3 Ne7 21. N2f3 g6 22. Qd2 Bg7 23. Bf4 Bc8 24. Re1 Bb7 25. Bg5 c5 26. Ne2 b4 27. Ng3 Rd8 28. Qf4 Nfxd5 {Satyapragyan,S (2431)-Abhyudaya,R (2079) Andorra 2006 1-0 (32)}) 14... Nd5 {[%emt 0:05:10]} 15. Ba4 {[%emt 0:04:36]} c6 {[%emt 0:01:19]} 16. Bxe7 {[%emt 0:03:51]} Rxe7 {[%emt 0:00:15]} 17. Rxe7 {[%emt 0:00:06]} Qxe7 {[%emt 0:00:12]} 18. Qf1 {[%emt 0:00:03]} Nf6 {[%emt 0:02:43]} 19. c4 {[%emt 0:01:44]} a6 {[%emt 0:04:04]} 20. Bc2 {[%emt 0:00:23]} b5 {[%emt 0:01:55]} 21. Re1 {[%emt 0:01:15]} Qf8 {[%emt 0:00:20]} 22. b3 {[%emt 0:01:57]} Re8 {[%emt 0:00:39]} 23. Re3 {[%emt 0:01:06]} Rxe3 {[%emt 0:00:19]} 24. fxe3 {[%emt 0:00:03][%cal Bf2e3,Be3e4,Be4e5,Be5f6][%mdl 32]} Qe7 {[%emt 0:00:35]} 25. e4 {[%emt 0:00:22]} bxc4 {[%emt 0:00:25]} 26. Nxc4 {[%emt 0:00:03]} c5 {[%emt 0:00:13]} 27. Nxd6 {[%emt 0:01:38]} Qxd6 $17 {[%emt 0:00:02]} 28. e5 {[%emt 0:00:01] [#]} Qd8 {[%emt 0:00:08]} (28... Qb6 $1 $17 {And now ...Nd5 would win.} 29. exf6 cxd4) 29. exf6 $15 {[%emt 0:00:08]} Bxf3 {[%emt 0:00:02]} 30. Qxf3 {[%emt 0:00:10]} Qxd4+ {[%emt 0:00:02][%mdl 4096] Endgame KQB-KQN} (30... gxf6 $6 31. dxc5 Qd4+ 32. Qf2 $16) 31. Qf2 {[%emt 0:00:20]} Qa1+ {[%emt 0:00:15]} (31... gxf6 32. Qxd4 cxd4 33. b4 $16) 32. Kh2 {[%emt 0:00:35]} Qxa2 {[%emt 0:00:23]} (32... Qxf6 33. Qxf6 gxf6 34. Kg3 $16) 33. Qxc5 {[%emt 0:00:17] [#] Threatens to win with Qc8+.} gxf6 {[%emt 0:00:02]} 34. b4 {[%emt 0:00:09]} (34. Qf5 Qb2 35. h4 Qe5+ 36. Qxe5 fxe5 37. b4) 34... Ne5 {[%emt 0:00:19]} 35. Be4 {[%emt 0:00:16]} Qe2 {[%emt 0:00:17]} 36. Qc8+ {[%emt 0:00:09]} Kg7 {[%emt 0:00:01]} 37. Qf5 {[%emt 0:00:02]} Ng6 {[%emt 0:00:15]} 38. Bf3 {[%emt 0:00:18]} Qe7 {[%emt 0:00:14]} 39. Qc5 {[%emt 0:00:09]} Qe5+ {[%emt 0:00:09]} (39... Qxc5 $17 40. bxc5 a5) 40. Kg1 {[%emt 0:00:04]} (40. Qxe5 $11 Nxe5 (40... fxe5 41. Bb7 $11) 41. Be2) 40... Nf4 {[%emt 0:00:09]} 41. Qa5 {[%emt 0:00:16]} Nd3 {[%emt 0:00:11]} 42. Qxa6 {[%emt 0:00:06]} Qd4+ {[%emt 0:00:05]} 43. Kh2 {[%emt 0:00:03]} Nxb4 {[%emt 0:00:01]} 44. Qe2 {[%emt 0:00:14]} Nd3 {[%emt 0:00:05]} 45. Qe4 {[%emt 0:00:05]} Qe5+ {[%emt 0:00:05]} 46. Kg1 {[%emt 0:00:05]} Nf4 {[%emt 0:00:02]} 47. Kf2 {[%emt 0:00:18]} Ne6 {[%emt 0:00:12]} 48. Qg4+ {[%emt 0:00:08]} Kf8 {[%emt 0:00:03]} 49. Qe4 {[%emt 0:00:19]} Ng5 {[%emt 0:00:08]} 50. Qd3 {[%emt 0:00:12]} Qf4 {[%emt 0:00:34]} 51. Qe3 {[%emt 0:00:11]} Qh4+ {[%emt 0:00:08]} 52. Kf1 {[%emt 0:00:03]} Qg3 {[%emt 0:00:11]} 53. Qf2 {[%emt 0:00:08]} Qe5 {[%emt 0:00:23]} 54. Qe2 {[%emt 0:00:12]} Kg7 {[%emt 0:00:14]} 55. Kf2 {[%emt 0:00:06]} Qf4 {[%emt 0:00:07]} 56. Qe3 {[%emt 0:00:08]} Qh4+ {[%emt 0:00:02]} 57. Ke2 {[%emt 0:00:11]} Qg3 {[%emt 0:00:06]} 58. Qf2 {[%emt 0:00:11]} Qe5+ {[%emt 0:00:11]} 59. Qe3 {[%emt 0:00:04]} (59. Kf1 $17) 59... Kg6 {[%emt 0:00:23]} (59... Nxf3 $19 {has better winning chances.} 60. Kxf3 Qxe3+ 61. Kxe3 Kg6) 60. Bc6 $17 {[%emt 0:00:11]} Qb2+ {[%emt 0:00:10]} 61. Qd2 {[%emt 0:00:06]} Qe5+ {[%emt 0:00:10]} 62. Qe3 {[%emt 0:00:07]} Ne6 {[%emt 0:00:11]} 63. Kf2 {[%emt 0:00:12]} Qb2+ {[%emt 0:00:10]} 64. Kg3 {[%emt 0:00:17]} Qe5+ {[%emt 0:00:10]} 65. Kf2 {[%emt 0:00:02]} h6 {[%emt 0:00:05]} 66. Bf3 {[%emt 0:00:12]} Nd4 {[%emt 0:00:10]} ({Black should play} 66... Ng5 $15) 67. Qe4+ $11 {[%emt 0:00:14] The position is equal.} Kg7 {[%emt 0:00:08]} (67... Qxe4 {simplifies} 68. Bxe4+ f5 69. Bb1 Kf6) 68. Qg4+ $1 {[%emt 0:00:04]} Kf8 {[%emt 0:00:18]} 69. Qc8+ $1 {[%emt 0:00:05]} Kg7 {[%emt 0:00:02]} 70. Qg4+ {[%emt 0:00:01]} Kh7 {[%emt 0:00:17]} 71. Qd7 {[%emt 0:00:06]} Kg8 {[%emt 0:00:09]} 72. Qc8+ {[%emt 0:00:15]} Kg7 {[%emt 0:00:04]} 73. Qg4+ {[%emt 0:00:03]} Kh7 {[%emt 0:00:14]} 74. Qd7 {[%emt 0:00:03]} Kg7 {[%emt 0:00:03]} 75. Qg4+ {[%emt 0:00:04]} Kh7 {[%emt 0:00:18]} 76. Qd7 {[%emt 0:00:10] Weighted Error Value: White=0.16 (very precise) /Black=0.14 (very precise) Mistake: 	White=3 	Black=4 Inaccurate: 	White=8 	Black=5 OK: 	White=22 	Black=26 Best: 	White=8 	--- Strong: 	White=2 	---} 1/2-1/2

[Event "GCT Superbet Rapid Poland 2025"]
[Site "Warsaw"]
[Date "2025.04.26"]
[Round "2.1"]
[White "Topalov, Veselin"]
[Black "Duda, Jan-Krzysztof"]
[Result "0-1"]
[ECO "C44"]
[WhiteElo "2717"]
[BlackElo "2739"]
[Annotator "TA"]
[PlyCount "104"]
[EventDate "2025.??.??"]
[EventType "rapid"]
[TimeControl "1500+10"]

{[%evp 14,104,-31,-17,-24,-28,-25,-28,0,0,-3,-2,-3,0,0,0,0,0,0,-11,-11,-8,0,0,14,3,15,0,17,16,14,13,22,9,12,9,14,0,16,16,10,0,0,0,0,0,0,-11,0,-29,-33,-31,-29,-31,-31,-34,-32,-34,-34,-52,-30,-25,0,-168,-171,-203,-199,-202,-194,-242,-242,-232,-226,-335,-335,-373,-367,-667,-660,-608,-602,-830,-821,-796,-747,-885,-870,-841,-837,-812,-757,-1046,-1011]} 1. e4 {[%emt 0:00:01]} e5 {[%emt 0:00:16]} 2. Nf3 {[%emt 0:00:06]} Nc6 {[%emt 0:00:02]} 3. Be2 {[%emt 0:00:48]} Nf6 {[%emt 0:00:06]} 4. d3 {[%emt 0:00:01]} d5 {[%emt 0:00:59]} 5. Nbd2 {[%emt 0:00:08]} Bc5 {[%emt 0:00:03]} 6. O-O {[%emt 0:00:12]} O-O {[%emt 0:00:03]} 7. c3 {[%emt 0:00:28]} a5 {[%emt 0:00:04]} 8. a4 {[%emt 0:00:07]} Re8 {[%emt 0:00:41] C44: Ponziani Opening and Scotch Gambit.} 9. exd5 {[%emt 0:01:12]} (9. Re1 h6 10. exd5 Nxd5 11. d4) ({RR} 9. Qc2 h6 10. h3 Be6 11. Re1 d4 12. Nf1 Nd7 13. Ng3 Bf8 14. cxd4 exd4 15. Nd2 Nc5 16. b3 Nb4 17. Qb1 Bd6 18. Ngf1 f5 19. Ba3 fxe4 20. dxe4 d3 21. Bd1 Rf8 22. Re3 Bf4 23. Rf3 Qg5 {Grischuk,A (2761)-Caruana,F (2808) Paris 2017 ½-½ (78)}) ({RR} 9. Qb3 h6 10. exd5 Qxd5 11. Qxd5 Nxd5 12. Ne4 Ba7 13. Re1 Bf5 14. Bd1 Rad8 15. Bc2 Bh7 16. Be3 Nxe3 17. fxe3 f5 18. Nf2 g5 19. d4 Kg7 20. Rad1 e4 21. Nd2 h5 22. h4 g4 23. Nf1 Ne7 {Adeimi,M (2077)-Ameer,H (1954) Erbil IRQ 2025 1-0 (31)}) 9... Qxd5 {[%emt 0:01:46]} 10. Ng5 $146 {[%emt 0:01:22]} (10. Nc4 e4 11. dxe4 Qxd1 {½-½ Predojevic,B (2643)-Pavlovic,M (2541) SRB-chT Valjevo 2011 (6.3)}) ({RR} 10. Nc4 h6 11. Ne3 Qd8 12. Nd2 Ba7 13. Qb3 Nd7 14. Ndc4 Nc5 15. Qc2 Be6 16. Rd1 Qe7 17. Bf3 e4 18. dxe4 Bxc4 19. Nxc4 Nxe4 20. Be3 Bxe3 21. Nxe3 Nxf2 22. Nd5 Nh3+ 23. gxh3 Qd6 24. Bg2 Ne5 {Rodchenkov,V (2304)-Della Morte,G (2353) Chess.com INT 2018 1-0 (43)}) ({RR} 10. Nc4 e4 11. dxe4 Qxd1 {½-½ (11) Predojevic,B (2643)-Pavlovic,M (2541) Valjevo 2011}) ({RR} 10. Nb3 Bf8 11. Nfd2 Be6 12. Nc4 Qd7 13. Qc2 b6 14. Re1 h6 15. Bd2 Rad8 16. Rad1 Bg4 17. Bxg4 Qxg4 18. Bc1 Qf5 19. Be3 {½-½ (19) Alvarado Diaz,A (2394)-Molina Rodriguez,B (2144) Santa Cruz de La Palma 2018}) 10... Ba7 {[%emt 0:02:38] Black has an edge.} 11. Qc2 {[%emt 0:03:06]} (11. Nge4 {simplifies} Nxe4 12. dxe4 Qe6 13. Nc4) 11... Bg4 {[%emt 0:02:32]} 12. Nde4 {[%emt 0:01:47] [#]} Bxe2 {[%emt 0:00:06]} 13. Qxe2 {[%emt 0:00:02] A sharp opening} Nxe4 {[%emt 0:00:33]} 14. dxe4 {[%emt 0:00:07]} Qd7 {[%emt 0:00:01]} 15. Rd1 {[%emt 0:00:36]} Qe7 {[%emt 0:00:03]} 16. Be3 {[%emt 0:01:58]} Bxe3 {[%emt 0:01:05]} 17. Qxe3 {[%emt 0:00:02]} f6 {[%emt 0:00:48] The position is symmetric and equal} 18. Nf3 {[%emt 0:00:03][%cal Bg5f3,Bf3d2,Bd2c4][%mdl 32]} Qe6 {[%emt 0:00:10]} 19. Qe2 {[%emt 0:01:19]} Red8 {[%emt 0:00:46]} 20. h4 {[%emt 0:03:33]} Kf8 {[%emt 0:01:17]} 21. Nd2 {[%emt 0:00:31]} Rd7 {[%emt 0:03:40]} 22. Nc4 {[%emt 0:00:02]} Rad8 {[%emt 0:00:06]} 23. Ne3 {[%emt 0:01:27]} Ne7 {[%emt 0:00:53]} 24. Rxd7 {[%emt 0:01:55]} Rxd7 {[%emt 0:02:02]} 25. Qh5 {[%emt 0:01:59]} h6 {[%emt 0:00:47]} 26. Qe2 {[%emt 0:00:01]} Qc6 {[%emt 0:00:50]} 27. Qc4 {[%emt 0:01:29]} h5 {[%emt 0:01:15]} 28. Qxc6 {[%emt 0:00:18]} Nxc6 $11 {[%emt 0:00:02][%mdl 4096] Endgame KRN-KRN} 29. Kf1 {[%emt 0:00:08]} Nd8 {[%emt 0:01:34]} 30. Nc4 {[%emt 0:01:20]} b6 {[%emt 0:00:15]} 31. b4 {[%emt 0:00:06]} axb4 {[%emt 0:00:57]} 32. cxb4 {[%emt 0:00:02][%cal Bc3b4,Bb4a5,Ba5a6][%mdl 32]} Rd4 {[%emt 0:00:03][%csl Bc4,Be4]} 33. Rc1 {[%emt 0:00:02]} Rxe4 {[%emt 0:01:53]} 34. a5 {[%emt 0:00:17]} bxa5 {[%emt 0:00:14]} 35. bxa5 {[%emt 0:00:01]} Rxh4 {[%emt 0:00:07]} 36. Kg1 {[%emt 0:01:01] Prevents Rh1+.} Nc6 {[%emt 0:00:05]} 37. a6 $1 {[%emt 0:00:03] and Nb2 would now be decisive} Na7 {[%emt 0:00:28]} 38. Nb2 $2 {[%emt 0:02:40] [#] White is now going downhill.} (38. Nxe5 $1 $11 Ra4 (38... fxe5 39. Rxc7 Nb5 40. Rb7 $11) 39. Rxc7 Ra1+ 40. Kh2 Rxa6 41. Ng6+ Kg8 42. Ne7+ Kf8 43. Ng6+) 38... c6 $1 $19 {[%emt 0:00:59]} 39. Nd3 {[%emt 0:00:01][%cal Of2f4]} Ra4 {[%emt 0:00:21]} 40. Nc5 {[%emt 0:00:02]} Ra5 {[%emt 0:00:07]} 41. Ne6+ {[%emt 0:00:59]} (41. f4 {keeps fighting.}) 41... Kf7 {[%emt 0:00:21]} 42. Nd8+ {[%emt 0:00:03]} Kg6 {[%emt 0:00:31]} 43. Rb1 {[%emt 0:00:34]} (43. Nxc6 $142 Rxa6 44. Ne7+ Kf7 45. Rc7) 43... Rxa6 {[%emt 0:00:12]} 44. Rb7 {[%emt 0:00:03]} c5 {[%emt 0:00:13]} 45. Kh2 $2 {[%emt 0:00:02]} (45. Rc7) 45... c4 {[%emt 0:00:26] Black is clearly winning.} 46. Rc7 {[%emt 0:00:04]} Rd6 {[%emt 0:00:17]} 47. Nf7 {[%emt 0:00:06]} Rc6 {[%emt 0:00:09]} 48. Rxa7 {[%emt 0:00:07]} c3 {[%emt 0:00:01]} 49. Nd8 {[%emt 0:00:37]} c2 {[%emt 0:00:03]} 50. Nxc6 {[%emt 0:00:02]} c1=Q {[%emt 0:00:03]} (50... c1=B $2 {loses.} 51. Ne7+ Kg5 52. Ra8 $18) 51. Ne7+ {[%emt 0:00:04]} Kh7 {[%emt 0:00:09] Strongly threatening ...Qc5.} 52. Nd5 {[%emt 0:00:02]} Qc5 {[%emt 0:00:23][%csl Ba7,Bd5,Bf2] Weighted Error Value: White=0.44/Black=0.03 (flawless) Loses game: 	White=1 	--- Mistake: 	White=3 	--- Inaccurate: 	White=1 	--- OK: 	White=13 	Black=24 Best: 	--- 	Black=1 Strong: 	White=1 	Black=1} 0-1